bitfinex/quotes_ETHUSD_20260214
["timestamp","ask_amount","ask_price","bid_price","bid_amount"]
[1771091576096,1.65717014,2081.4,2080.8,3.41194062]
[1771091578043,0.45495286,2081.3,2080.8,1.733]
[1771091578685,0.45495286,2081.3,2080.7,1.20149493]
[1771091580691,0.45495286,2081.1,2080.6,0.001]
[1771091581103,0.45495286,2081.1,2080.6,1.2025674]
[1771091583398,1.656275,2081.1,2080.6,1.2025674]
[1771091583598,1.656275,2081.1,2080.6,0.001]
[1771091584726,0.45495286,2081.2,2080.6,0.47850616]
[1771091587128,1.20128778,2081.1,2080.6,0.47850616]
[1771091587630,1.20128778,2081.1,2080.6,0.001]
[1771091590059,1.6562273,2081.2,2080.6,0.001]
[1771091596366,0.45179316,2081.1,2080.6,0.001]
[1771091597967,1.2013455,2081.0,2080.6,0.001]
[1771091599870,0.45179316,2080.9,2080.6,0.001]
[1771091601943,0.45179316,2080.7,2080.6,0.001]
[1771091602148,0.45179316,2080.7,2080.4,0.001]
[1771091605073,1.20157646,2080.6,2080.4,0.001]
[1771091605266,4.8058439,2080.9,2080.4,0.001]
[1771091605267,0.45179316,2080.9,2080.4,0.001]
[1771091607280,1.20146097,2080.8,2080.4,0.001]
[1771091612675,0.45179316,2080.8,2080.4,0.001]
[1771091613351,0.45179316,2080.6,2080.4,0.001]
[1771091614280,0.45179316,2080.6,2080.3,0.001]
[1771091614783,1.20157646,2080.6,2080.3,0.001]
[1771091615401,1.20140323,2080.9,2080.3,0.49516266]
[1771091617187,2.81237932,2081.0,2080.5,0.49416266]
[1771091617555,1.20137932,2081.0,2080.5,0.49416266]
[1771091619382,1.65317248,2081.0,2080.3,0.001]
[1771091619587,0.45179316,2080.9,2080.3,0.001]
[1771091621373,0.46600792,2080.7,2080.3,0.001]
[1771091625088,1.69408945,2080.6,2080.3,0.001]
[1771091629091,1.80437859,2080.6,2080.3,0.001]
[1771091630704,1.80437859,2080.6,2080.3,0.45387544]
[1771091630705,0.11028914,2080.6,2080.3,0.45387544]
[1771091635013,1.31187453,2080.6,2080.3,0.001]
[1771091642921,0.11028914,2080.6,2080.3,0.001]
[1771091643135,0.0011,2080.9,2080.6,0.45287544]
[1771091643429,1.20251165,2080.9,2080.3,0.001]
[1771091643601,1.20251165,2080.9,2080.4,0.45287544]
[1771091644307,0.0011,2080.9,2080.4,0.45287544]
[1771091646335,0.0011,2080.9,2080.6,0.45287544]
[1771091649634,0.0011,2080.9,2080.7,1.65439415]
[1771091650514,0.0011,2081.1,2080.7,1.65439415]
[1771091650947,0.0011,2081.1,2080.8,0.45287544]
[1771091652525,0.0011,2081.1,2080.6,0.45287544]
[1771091652804,0.49361299,2081.1,2080.5,1.735]
[1771091654122,0.0011,2081.1,2080.5,2.2250491]
[1771091654509,0.0011,2081.1,2080.6,1.20157646]
[1771091654917,0.0011,2081.1,2080.5,3.42665194]
[1771091655119,0.46796503,2081.1,2080.5,1.735]
[1771091656544,0.46796503,2081.1,2080.5,2.93663407]
[1771091657050,1.2013455,2081.0,2080.5,2.93663407]
[1771091659251,1.2013455,2081.0,2080.5,1.735]
[1771091661626,1.66821053,2081.0,2080.5,1.735]
[1771091666259,0.46686503,2080.9,2080.3,0.001]
[1771091668021,1.20146097,2080.8,2080.3,0.001]
[1771091669269,0.46686503,2080.7,2080.3,0.001]
[1771091670950,1.20157646,2080.6,2080.3,0.001]
[1771091671161,1.66844149,2080.6,2080.3,0.001]
[1771091676981,1.20157646,2080.6,2080.3,0.001]
[1771091677148,1.66844149,2080.6,2080.3,0.001]
[1771091679290,0.46686503,2080.5,2080.3,0.001]
[1771091680183,0.46686503,2080.5,2080.1,0.001]
[1771091681390,1.20169198,2080.4,2080.1,0.001]
[1771091686189,0.48528938,2080.3,2080.0,0.001]
[1771091687459,1.20180751,2080.2,2080.0,0.001]
[1771091688583,3.33309689,2080.2,2080.0,0.001]
[1771091689167,3.33309689,2080.2,2079.9,0.001]
[1771091689368,0.48528938,2080.1,2079.9,0.001]
[1771091690165,0.48528938,2080.1,2079.6,0.001]
[1771091691394,2.84780751,2080.2,2079.6,0.001]
[1771091691556,1.20180751,2080.2,2079.6,0.4550963]
[1771091691958,1.26791738,2080.4,2079.8,0.4540963]
[1771091692165,2.91791738,2080.4,2079.8,0.4540963]
[1771091693693,2.91791738,2080.4,2079.9,1.65607716]
[1771091694697,3.40320676,2080.4,2079.7,7.3182843]
[1771091695002,3.40320676,2080.4,2079.8,0.4540963]
[1771091696881,2.91791738,2080.4,2079.8,1.65613007]
[1771091698802,0.0011,2081.1,2080.3,0.4540963]
[1771091698974,0.05295481,2080.9,2080.3,0.4540963]
[1771091699676,0.05295481,2080.9,2080.5,0.4540963]
[1771091700486,0.05295481,2080.9,2080.2,1.20180751]
[1771091700786,0.05295481,2080.9,2080.3,0.4540963]
[1771091701717,0.48528938,2080.7,2079.8,1.20203738]
[1771091702021,0.48528938,2080.5,2079.8,1.20203738]
[1771091702190,0.48528938,2080.5,2079.7,1.20205689]
[1771091703627,1.20169198,2080.4,2079.8,0.4540963]
[1771091703790,1.20167602,2080.5,2079.8,0.4540963]
[1771091704118,1.6869654,2080.5,2079.8,0.4540963]
[1771091704421,1.20167602,2080.5,2079.8,0.4540963]
[1771091706414,1.20157646,2080.6,2080.0,0.4540963]
[1771091706602,1.68686584,2080.6,2079.9,1.20198086]
[1771091707516,0.48528938,2080.5,2079.9,1.20198086]
[1771091708912,1.20169198,2080.4,2079.9,1.20198086]
[1771091709224,1.20169198,2080.4,2079.9,1.65607716]
[1771091714341,1.68442161,2080.4,2079.8,1.20200259]
[1771091716136,1.68442161,2080.4,2079.7,1.6778958]
[1771091717241,0.48272963,2080.3,2079.6,0.001]
[1771091720253,0.48272963,2080.1,2079.6,0.001]
[1771091722316,1.68464195,2080.1,2079.6,0.001]
[1771091725250,4.80655807,2080.5,2079.6,0.47683942]
[1771091725251,5.2892877,2080.5,2079.6,0.47683942]
[1771091726046,4.80655807,2080.5,2079.6,0.47683942]
[1771091726342,0.48272963,2080.4,2079.6,0.47683942]
[1771091728446,0.48272963,2080.4,2079.7,1.20209645]
[1771091728447,1.20174974,2080.3,2079.7,1.20209645]
[1771091728618,0.48272963,2080.2,2079.7,1.20209645]
[1771091729554,1.20174974,2080.3,2079.7,1.20209645]
[1771091731644,1.20174974,2080.3,2079.7,1.67793587]
[1771091731850,0.48272963,2080.3,2079.7,1.67793587]
[1771091732548,5.28949071,2080.5,2079.8,0.47583942]
[1771091734752,1.20163422,2080.5,2079.9,1.67782028]
[1771091734954,1.20163422,2080.5,2080.0,0.47583942]
[1771091735448,1.20163422,2080.5,2079.8,1.20200416]
[1771091735755,1.68436385,2080.5,2079.8,1.67784358]
[1771091738755,1.20163422,2080.5,2079.9,0.47583942]
[1771091740464,1.20157646,2080.6,2080.0,1.67776249]
[1771091740664,1.20157646,2080.6,2080.1,0.47583942]
[1771091740862,6.45828822,2080.7,2080.1,0.47583942]
[1771091740863,0.0011,2080.7,2080.1,0.47583942]
[1771091741362,1.20262042,2080.7,2080.1,0.47583942]
[1771091741544,0.0011,2080.7,2080.1,0.47583942]
[1771091742867,0.0011,2080.7,2080.2,1.67438169]
[1771091743764,0.0011,2080.7,2080.2,0.47257418]
[1771091743954,0.0011,2080.7,2080.1,1.20181902]
[1771091743955,0.48885998,2080.7,2080.1,1.20181902]
[1771091744746,1.6904307,2080.7,2080.1,1.6743932]
[1771091745148,1.6904307,2080.7,2080.0,1.6744723]
[1771091746541,0.48775998,2080.6,2080.0,1.6744723]
[1771091747354,0.0011,2080.7,2080.1,0.47257418]
[1771091747968,0.48885998,2080.7,2080.1,0.47257418]
[1771091749269,1.69043087,2080.7,2080.1,1.67439008]
[1771091751564,0.48775998,2080.6,2079.9,2.93394664]
[1771091752172,0.48775998,2080.6,2079.9,3.40652082]
[1771091753442,0.0011,2080.7,2080.0,0.47257418]
[1771091753643,0.0011,2080.7,2080.0,5.66760692]
[1771091753852,0.0011,2080.7,2080.1,0.47257418]
[1771091754539,0.48885998,2080.7,2080.1,0.47257418]
[1771091755074,0.0011,2080.7,2080.1,0.47257418]
[1771091755476,0.0011,2080.7,2080.3,0.47257418]
[1771091757440,0.0011,2080.7,2080.3,1.67430728]
[1771091757647,0.0011,2080.7,2080.2,1.20176106]
[1771091761099,0.0011,2080.7,2080.2,0.47257418]
[1771091761585,0.0011,2080.8,2080.3,0.47257418]
[1771091763282,0.0011,2080.8,2080.5,0.47257418]
[1771091763478,0.0011,2081.0,2080.5,0.47257418]
[1771091765579,0.0011,2081.0,2080.6,1.20157646]
[1771091766898,0.48885998,2081.0,2080.5,1.20159992]
[1771091768777,1.20245175,2081.0,2080.5,1.20159992]
[1771091770595,0.48885998,2081.0,2080.5,1.20159992]
[1771091771780,0.0011,2081.0,2080.5,1.20159992]
[1771091775769,0.0011,2081.0,2080.5,1.66114227]
[1771091777200,0.0011,2081.0,2080.6,0.45954235]
[1771091778193,0.0011,2081.1,2080.7,0.45954235]
[1771091780688,0.0011,2081.1,2080.7,1.66105388]
[1771091781807,0.0011,2081.1,2080.5,1.66117657]
[1771091782623,0.0011,2081.1,2080.5,1.20163422]
[1771091782624,0.46098177,2081.1,2080.5,1.20163422]
[1771091783293,0.0011,2081.2,2080.8,5.66079025]
[1771091783904,0.0011,2081.2,2080.7,0.46320106]
[1771091784622,1.20128778,2081.1,2080.5,1.66483528]
[1771091784945,1.66116955,2081.1,2080.5,1.66483528]
[1771091785420,0.45988177,2081.0,2080.4,3.8]
[1771091785800,0.45988177,2081.0,2080.4,5.00169118]
[1771091787428,0.45988177,2081.0,2080.4,1.20169118]
[1771091787429,1.20140323,2080.9,2080.4,1.20169118]
[1771091788125,1.20140323,2080.9,2080.3,1.66490936]
[1771091788303,0.45988177,2080.8,2080.2,1.20276562]
[1771091788626,0.45988177,2080.8,2080.2,0.001]
[1771091789520,0.45988177,2080.6,2080.2,0.001]
[1771091791446,1.66148916,2080.6,2080.2,0.001]
[1771091793419,0.45988177,2080.6,2080.2,0.001]
[1771091793842,1.66146075,2080.6,2080.2,0.001]
[1771091794421,0.45988177,2080.5,2080.2,0.001]
[1771091794721,1.20158063,2080.6,2080.2,0.001]
[1771091794995,1.6614624,2080.6,2080.2,0.001]
[1771091795954,6.45639922,2081.0,2080.2,0.001]
[1771091795955,0.45988177,2080.8,2080.2,0.001]
[1771091796155,2.85238293,2081.0,2080.3,0.46320106]
[1771091796370,1.20138293,2081.0,2080.3,0.46320106]
[1771091796573,2.85438293,2081.0,2080.3,0.46320106]
[1771091796775,2.85438293,2081.0,2080.2,5.66179025]
[1771091796776,1.653,2081.0,2080.5,0.46320106]
[1771091798081,1.653,2081.0,2080.6,1.20157646]
[1771091798433,1.20235323,2081.2,2080.6,1.66477752]
[1771091798632,1.20233039,2081.2,2080.7,0.46320106]
[1771091798837,1.20233039,2081.2,2080.6,1.20157646]
[1771091799371,0.45988177,2081.1,2080.4,1.66485832]
[1771091800136,1.66117624,2081.1,2080.4,1.66485832]
[1771091800643,1.66117624,2081.1,2080.5,0.46320106]
[1771091802376,0.47013443,2081.0,2080.2,1.20276389]
[1771091804542,0.47728899,2080.8,2080.2,1.20276389]
[1771091804847,0.47728899,2080.8,2080.2,0.001]
[1771091805768,2.12928899,2080.8,2080.2,0.001]
[1771091806677,1.6788077,2080.7,2080.2,0.001]
[1771091807047,0.47728899,2080.6,2080.2,0.001]
[1771091808481,3.33163617,2081.0,2080.3,0.49004597]
[1771091808772,0.47728899,2080.9,2080.3,1.69179303]
[1771091809149,0.47728899,2080.9,2080.2,1.20277797]
[1771091809348,0.47728899,2080.9,2080.2,1.69282394]
[1771091810858,1.67872618,2080.9,2080.2,1.69282394]
[1771091811272,1.67872618,2080.9,2080.2,1.20277797]
[1771091811472,1.20143719,2080.9,2080.3,0.49004597]
[1771091813051,1.20143719,2080.9,2080.4,1.20169198]
[1771091819094,1.67872618,2080.9,2080.4,1.20169198]
[1771091820694,1.67872618,2080.9,2080.3,1.69174885]
[1771091820891,0.47728899,2080.8,2080.2,1.20279271]
[1771091821060,0.47728899,2080.8,2080.2,0.49104597]
[1771091821264,1.20142787,2080.9,2080.2,0.49104597]
[1771091821468,1.67966369,2081.2,2080.3,0.49004597]
[1771091821693,1.657,2081.0,2080.3,0.49004597]
[1771091821900,2.13428899,2081.0,2080.3,0.49004597]
[1771091822205,1.657,2081.0,2080.3,0.49004597]
[1771091822376,1.657,2081.0,2080.5,0.49004597]
[1771091823090,2.85837224,2081.0,2080.4,1.20169198]
[1771091823270,2.85837224,2081.0,2080.4,1.69173795]
[1771091824899,1.657,2081.0,2080.5,0.49004597]
[1771091825379,1.657,2081.0,2080.6,1.20157646]
[1771091825692,1.657,2081.0,2080.6,1.69162243]
[1771091827686,1.20129132,2081.1,2080.6,1.69162243]
[1771091828796,1.20236587,2081.2,2080.6,1.69162243]
[1771091830811,0.0011,2081.2,2080.6,1.20157646]
[1771091831109,0.0011,2081.2,2080.6,1.69162243]
[1771091832537,0.0011,2081.2,2080.6,1.20157646]
[1771091832818,0.0011,2081.2,2080.7,0.49004597]
[1771091834301,0.0011,2081.2,2080.8,1.66683314]
[1771091836531,0.0011,2081.2,2080.9,0.46537217]
[1771091837028,0.0011,2081.2,2080.7,5.27121607]
[1771091840323,0.0011,2081.2,2080.8,0.46537217]
[1771091840520,0.0011,2081.3,2080.9,0.46537217]
[1771091841514,0.0011,2081.3,2081.0,1.2013455]
[1771091842139,0.0011,2081.3,2081.0,1.66671767]
[1771091843511,0.0011,2081.4,2081.0,1.66671767]
[1771091844630,0.0011,2081.4,2081.0,1.2013455]
[1771091854539,0.0011,2081.4,2080.9,7.32550104]
[1771091856839,0.0011,2081.4,2081.0,0.46537217]
[1771091859855,0.0011,2081.4,2081.1,1.20128778]
[1771091862663,0.0011,2081.4,2081.0,1.66667052]
[1771091870739,0.0011,2081.5,2081.0,1.66667052]
[1771091873072,0.0011,2081.5,2081.1,0.45778759]
[1771091874260,0.0011,2081.5,2081.1,6.11656041]
[1771091875171,0.0011,2081.6,2081.2,1.20123005]
[1771091875349,0.47492609,2081.5,2081.2,1.20123005]
[1771091875749,0.0011,2081.6,2081.2,1.20123005]
[1771091879176,0.0011,2081.6,2081.1,4.80492023]
[1771091881079,0.47602609,2081.6,2081.1,1.20128778]
[1771091881264,1.67706049,2081.6,2081.1,1.20128778]
[1771091882485,0.0011,2081.6,2081.1,1.20128778]
[1771091883656,0.0011,2081.6,2081.1,1.65907537]
[1771091884594,0.0011,2081.6,2081.2,0.45778759]
[1771091885966,0.0011,2081.6,2081.3,1.20117234]
[1771091888084,0.0011,2081.6,2081.2,1.20123005]
[1771091891290,0.0011,2081.6,2081.1,4.80503725]
[1771091895708,0.0011,2081.6,2080.9,12.2553112]
[1771091895709,0.46961897,2081.6,2080.9,1.791]
[1771091895875,0.46961897,2081.6,2080.9,2.99235933]
[1771091898914,1.67066585,2081.6,2080.9,2.99235933]
[1771091899118,0.46851897,2081.5,2080.9,2.99235933]
[1771091904719,1.66958442,2081.5,2080.9,2.99235933]
[1771091906099,0.46851897,2081.4,2080.9,2.99235933]
[1771091906708,0.46851897,2081.4,2080.8,10.92062422]
[1771091906709,0.46851897,2081.2,2080.8,0.001]
[1771091908786,1.20128778,2081.1,2080.8,0.001]
[1771091908993,0.46851897,2081.0,2080.8,0.001]
[1771091911295,1.6699222,2080.9,2080.8,0.001]
[1771091912031,0.46851897,2080.8,2080.7,0.001]
[1771091913301,1.66997994,2080.8,2080.7,0.001]
[1771091914802,0.46851897,2080.7,2080.1,0.001]
[1771091914999,6.86086775,2080.8,2079.9,0.001]
[1771091915000,0.46851897,2080.5,2079.9,0.001]
[1771091915308,0.46851897,2080.2,2079.9,0.001]
[1771091915528,0.46851897,2080.1,2079.9,0.001]
[1771091916031,1.634,2080.2,2079.9,0.002]
[1771091916496,1.634,2080.2,2079.9,0.001]
[1771091916698,1.635,2080.2,2080.0,0.001]
[1771091916903,0.46851897,2080.1,2079.9,0.001]
[1771091918942,1.67044204,2080.0,2079.9,0.001]
[1771091920171,1.67044204,2080.0,2079.7,0.001]
[1771091920521,0.46851897,2080.0,2079.7,0.001]
[1771091920934,1.635,2080.2,2079.7,0.45560449]
[1771091921251,1.2018174,2080.2,2079.7,0.45560449]
[1771091921415,2.8408174,2080.2,2079.7,0.45560449]
[1771091922132,0.47995064,2080.1,2079.7,0.001]
[1771091923048,1.6804315,2080.0,2079.7,0.001]
[1771091924657,0.47850843,2079.9,2079.7,0.001]
[1771091925158,1.68048929,2079.9,2079.7,0.001]
[1771091926569,0.47850843,2079.8,2079.7,0.001]
[1771091926738,2.84598086,2079.9,2079.7,0.001]
[1771091929265,0.47850843,2079.8,2079.7,0.001]
[1771091931550,1.68054708,2079.8,2079.7,0.001]
[1771091932875,0.47850843,2079.7,2079.6,0.001]
[1771091933948,1.68060488,2079.7,2079.6,0.001]
[1771091934152,1.20209645,2079.7,2079.6,0.001]
[1771091935042,1.68060488,2079.7,2079.6,0.001]
[1771091936557,1.20209645,2079.7,2079.6,0.001]
[1771091938269,1.657,2079.7,2079.6,0.001]
[1771091938953,0.04423727,2079.9,2079.6,0.001]
[1771091939154,1.658,2079.8,2079.6,0.4713216]
[1771091940258,1.20184362,2080.2,2079.6,0.4713216]
[1771091940455,1.658,2080.0,2079.6,0.4713216]
[1771091940661,1.658,2080.1,2079.6,0.4713216]
[1771091940967,1.658,2080.1,2079.7,1.67241805]
[1771091942290,1.658,2080.1,2079.7,0.4703216]
[1771091942977,2.8598663,2080.1,2079.7,0.4703216]
[1771091943182,2.8598663,2080.1,2079.6,0.001]
[1771091943476,2.8598663,2080.1,2079.6,1.20315089]
[1771091943694,1.2018663,2080.1,2079.6,1.20315089]
[1771091944268,1.2018663,2080.1,2079.6,0.001]
[1771091944475,1.68037473,2080.1,2079.6,0.001]
[1771091947297,1.86899999,2080.2,2079.7,0.4703216]
[1771091947687,0.20999999,2080.2,2079.7,0.4703216]
[1771091948563,1.3901,2080.4,2079.7,0.4703216]
[1771091948764,2.59179668,2080.4,2079.7,0.4703216]
[1771091949167,3.07030511,2080.4,2079.7,0.4703216]
[1771091949369,3.07030511,2080.4,2079.8,1.20203865]
[1771091949878,3.07030511,2080.4,2079.8,1.67236025]
[1771091950274,0.47850843,2080.3,2079.7,0.4703216]
[1771091950674,2.59179668,2080.4,2079.7,0.4703216]
[1771091950993,3.07030511,2080.4,2079.7,0.4703216]
[1771091952107,3.07030511,2080.4,2079.7,1.6723753]
[1771091952582,0.47850843,2080.3,2079.6,0.001]
[1771091954399,1.66332108,2080.2,2079.6,0.001]
[1771091954714,1.66332108,2080.2,2079.6,0.48334154]
[1771091954886,1.20180751,2080.2,2079.6,0.48334154]
[1771091955694,1.662,2080.2,2079.6,0.48334154]
[1771091956694,2.8638373,2080.2,2079.7,1.68443799]
[1771091957672,1.2018373,2080.2,2079.7,1.68443799]
[1771091958279,1.66335087,2080.2,2079.6,1.68545896]
[1771091963911,1.2018373,2080.2,2079.6,1.68545896]
[1771091965534,1.2018373,2080.2,2079.7,0.48234154]
[1771091966227,2.86379301,2080.3,2079.7,0.48234154]
[1771091966428,2.86883128,2080.4,2079.7,0.48234154]
[1771091968036,0.0011,2080.4,2079.9,0.48234154]
[1771091974343,0.0011,2080.4,2080.0,1.68426461]
[1771091975145,0.0011,2080.4,2080.1,0.48234154]
[1771091976639,0.0011,2080.4,2080.2,1.20180751]
[1771091977842,0.0011,2080.4,2080.2,1.68414905]
[1771091978644,0.0011,2080.4,2080.3,0.48234154]
[1771091978846,0.0011,2080.5,2080.0,5.66743596]
[1771091979153,0.0011,2080.7,2080.3,0.48234154]
[1771091979361,0.21219999,2080.9,2080.3,0.48234154]
[1771091979643,0.0011,2080.8,2080.3,0.48234154]
[1771091980641,0.0011,2080.7,2080.3,0.48234154]
[1771091980846,0.46261357,2080.9,2080.3,0.48234154]
[1771091981234,1.66406586,2080.9,2080.3,1.68405164]
[1771091981435,0.21219999,2080.8,2080.3,1.68405164]
[1771091981821,0.69061495,2080.8,2080.3,1.2017101]
[1771091986755,0.0011,2080.7,2080.3,1.2017101]
[1771091987424,1.89210301,2080.8,2080.3,1.2017101]
[1771091987627,0.0011,2080.7,2080.3,1.2017101]
[1771091989020,1.89210301,2080.8,2080.3,1.2017101]
[1771091989225,0.0011,2080.7,2080.3,1.2017101]
[1771091989839,0.0011,2080.7,2080.4,0.48743357]
[1771091992026,0.21219999,2080.6,2080.5,1.20163422]
[1771091992230,0.0011,2080.7,2080.5,1.20163422]
[1771091992449,0.0011,2080.6,2080.5,1.20163422]
[1771091992647,0.0011,2080.9,2080.1,10.4747835]
[1771091992859,0.47870255,2080.9,2080.2,1.68918968]
[1771091994260,1.68015153,2080.9,2080.2,1.68918968]
[1771091995455,0.0011,2080.8,2080.2,1.68918968]
[1771091995844,0.0011,2080.7,2080.2,1.68918968]
[1771091996355,0.0011,2080.6,2080.2,1.68918968]
[1771091996558,0.0011,2080.8,2080.3,0.48743357]
[1771091997229,0.0011,2080.7,2080.3,0.48743357]
[1771091997665,0.0011,2080.6,2080.3,0.48743357]
[1771091997840,0.0011,2080.8,2080.3,0.48743357]
[1771091998228,0.0011,2080.7,2080.3,0.48743357]
[1771091998723,0.0011,2080.6,2080.3,1.689128]
[1771091998951,0.0011,2080.8,2080.3,1.689128]
[1771091999937,0.0011,2080.7,2080.3,1.689128]
[1771092000437,0.0011,2080.6,2080.3,1.689128]
[1771092000638,0.0011,2080.8,2080.3,1.689128]
[1771092001461,0.47870255,2080.7,2080.1,1.20186529]
[1771092001869,0.47870255,2080.6,2080.1,1.20186529]
[1771092002063,0.47870255,2080.8,2080.1,1.20186529]
[1771092002669,0.47870255,2080.7,2080.1,1.20186529]
[1771092003072,0.0011,2080.6,2080.1,1.20186529]
[1771092003247,0.0011,2080.6,2080.0,1.68931553]
[1771092003248,1.20267646,2080.6,2080.0,1.68931553]
[1771092003441,1.68027901,2080.6,2080.0,1.68931553]
[1771092003643,0.47760255,2080.5,2080.0,1.20188196]
[1771092003945,0.47760255,2080.5,2079.9,6.86938054]
[1771092004287,0.0011,2080.4,2079.9,1.20194458]
[1771092005777,1.20279198,2080.4,2079.8,3.54343965]
[1771092006071,1.68039453,2080.4,2079.8,3.54343965]
[1771092006271,1.68039453,2080.4,2079.8,2.34143357]
[1771092006443,0.47760255,2080.3,2079.8,0.001]
[1771092006644,0.47870255,2080.3,2079.6,0.001]
[1771092006846,0.47760255,2080.1,2079.6,0.001]
[1771092007066,0.47760255,2079.9,2079.6,0.001]
[1771092007483,0.0011,2079.8,2079.6,0.001]
[1771092007870,0.0011,2079.7,2079.6,0.001]
[1771092009488,2.13560255,2080.1,2079.6,0.001]
[1771092009806,1.658,2080.1,2079.6,0.001]
[1771092010014,2.85987015,2080.1,2079.6,1.20315426]
[1771092010180,2.85987015,2080.1,2079.6,0.001]
[1771092010382,1.6794727,2080.1,2079.6,0.001]
[1771092011874,0.47760255,2080.1,2079.6,0.001]
[1771092013095,1.659,2080.2,2079.6,0.001]
[1771092013809,1.659,2080.2,2079.6,0.45430197]
[1771092014706,1.68950783,2080.3,2079.6,0.45430197]
[1771092014890,1.68950783,2080.3,2079.7,1.20209645]
[1771092017601,0.48775787,2080.2,2079.7,1.20209645]
[1771092018832,0.48775787,2080.2,2079.6,1.20312382]
[1771092019634,1.68962316,2080.1,2079.6,0.001]
[1771092020836,0.48775787,2080.1,2079.6,0.001]
[1771092023532,1.68962888,2080.1,2079.6,0.001]
[1771092024322,0.48775787,2080.0,2079.6,0.001]
[1771092027024,1.68968397,2080.0,2079.6,0.001]
[1771092027723,1.68968201,2080.0,2079.6,0.001]
[1771092028837,0.48775787,2080.0,2079.6,0.001]
[1771092029632,1.68968429,2080.0,2079.6,0.001]
[1771092030920,0.48775787,2079.9,2079.6,0.001]
[1771092032031,1.68974882,2079.9,2079.6,0.001]
[1771092040257,0.48775787,2079.8,2079.6,0.001]
[1771092044657,1.20202424,2079.9,2079.6,0.001]
[1771092045025,1.68674466,2080.0,2079.6,0.001]
[1771092045224,1.673,2079.9,2079.6,0.001]
[1771092046961,2.87498562,2079.9,2079.6,0.001]
[1771092047166,1.20198562,2079.9,2079.6,0.001]
[1771092050961,1.68676092,2079.9,2079.6,0.001]
[1771092052651,0.4847753,2079.8,2079.6,0.001]
[1771092055080,1.20209645,2079.7,2079.6,0.001]
[1771092055776,2.88309645,2079.7,2079.6,0.001]
[1771092056188,3.36787175,2079.7,2079.6,0.001]
[1771092058162,3.36787175,2079.7,2079.4,0.001]
[1771092061085,0.4847753,2079.6,2079.4,0.001]
[1771092061457,0.4847753,2079.6,2079.2,0.001]
[1771092063100,1.20221207,2079.5,2079.2,0.001]
[1771092063407,1.691,2079.4,2079.2,0.001]
[1771092071502,0.4847753,2079.8,2079.2,0.001]
[1771092071702,1.697,2079.9,2079.4,0.48253774]
[1771092072001,1.697,2080.0,2079.5,0.48253774]
[1771092073683,2.89894381,2080.0,2079.5,0.48253774]
[1771092074881,2.89892342,2080.0,2079.5,1.68474067]
[1771092075097,1.697,2080.2,2079.6,0.47932212]
[1771092076406,2.8988228,2080.2,2079.7,1.20209645]
[1771092076578,2.8988228,2080.2,2079.7,1.68141857]
[1771092077485,1.697,2080.2,2079.7,1.68141857]
[1771092077808,1.20285075,2080.3,2079.8,0.47932212]
[1771092077993,2.89985075,2080.3,2079.8,0.47932212]
[1771092080528,3.36596337,2080.3,2079.6,1.68143263]
[1771092083809,3.36596337,2080.3,2079.7,0.47932212]
[1771092084595,3.36596337,2080.3,2079.6,1.20211051]
[1771092084921,0.46611262,2080.2,2079.6,1.68143263]
[1771092085606,2.89985075,2080.3,2079.7,0.47932212]
[1771092085917,3.36596337,2080.3,2079.7,0.47932212]
[1771092088224,0.46611262,2080.2,2079.6,1.20210865]
[1771092089767,0.46611262,2080.2,2079.3,5.48260748]
[1771092090048,1.66797791,2080.1,2079.4,0.47932212]
[1771092090419,0.46611262,2080.0,2079.3,0.001]
[1771092090654,0.46611262,2079.8,2079.3,0.001]
[1771092092046,1.20203865,2079.8,2079.3,0.48032212]
[1771092092843,1.20203865,2079.8,2079.3,0.001]
[1771092093555,1.66815127,2079.8,2079.3,0.001]
[1771092096456,1.702,2079.8,2079.3,0.48032212]
[1771092096751,1.702,2079.8,2079.5,0.47932212]
[1771092097851,1.35266084,2080.0,2079.5,0.47932212]
[1771092098022,3.05466084,2080.0,2079.5,0.47932212]
[1771092099933,3.05466084,2080.0,2079.3,1.68262646]
[1771092100265,3.52077346,2080.0,2079.3,1.68262646]
[1771092103255,0.48269105,2079.9,2079.3,0.001]
[1771092103752,0.48269105,2079.9,2079.3,1.66236258]
[1771092103935,3.05466084,2080.0,2079.4,0.45903881]
[1771092104136,1.85268866,2080.0,2079.5,0.45903881]
[1771092106459,1.85268866,2080.0,2079.6,1.66119307]
[1771092107358,1.85268866,2080.0,2079.6,0.45903881]
[1771092107359,3.05461321,2080.0,2079.6,0.45903881]
[1771092107941,1.85268866,2080.0,2079.6,0.45903881]
[1771092108558,3.05461183,2080.0,2079.6,0.45903881]
[1771092109070,1.85268866,2080.0,2079.6,1.6611926]
[1771092112668,3.05461214,2080.0,2079.4,1.6612933]
[1771092114388,0.48269105,2079.9,2079.3,1.66231326]
[1771092114586,3.05461214,2080.0,2079.3,1.66231326]
[1771092114794,3.05461214,2080.0,2079.3,1.20327445]
[1771092114987,3.05461214,2080.0,2079.4,0.45903881]
[1771092115991,3.05461214,2080.0,2079.4,1.66125635]
[1771092116388,3.05461214,2080.0,2079.5,0.45903881]
[1771092119192,3.05761214,2080.0,2079.5,0.45903881]
[1771092119394,3.05761214,2080.0,2079.5,1.66124687]
[1771092119794,3.05761214,2080.0,2079.5,0.45903881]
[1771092120001,3.54030319,2080.0,2079.3,1.6623371]
[1771092120296,3.54030319,2080.0,2079.4,0.45903881]
[1771092121892,3.54030319,2080.0,2079.4,1.66130306]
[1771092122464,1.85568866,2080.0,2079.5,0.45903881]
[1771092122797,3.05761374,2080.0,2079.5,0.45903881]
[1771092124195,3.05761374,2080.0,2079.5,1.66120782]
[1771092125599,3.05761374,2080.0,2079.5,0.45903881]
[1771092125896,3.06061374,2080.0,2079.5,1.66124868]
[1771092127510,0.15068866,2080.0,2079.6,0.45903881]
[1771092127691,1.20181034,2080.2,2079.7,1.66113526]
[1771092127894,1.709,2080.2,2079.7,1.66113526]
[1771092129382,0.0011,2080.4,2079.9,0.45903881]
[1771092129700,0.0011,2080.5,2080.1,0.45903881]
[1771092129995,0.2011,2080.6,2080.1,0.45903881]
[1771092130771,0.0011,2080.7,2080.3,0.45903881]
[1771092131091,0.0011,2080.8,2080.3,0.45903881]
[1771092131686,0.0011,2080.8,2080.4,1.66073079]
[1771092132771,0.0011,2080.8,2080.5,0.45903881]
[1771092133171,0.0011,2080.9,2080.6,0.47097603]